[Event "55th Rubinstein Memorial-A 2019"]
[Site "Polanica-Zdroj"]
[Date "2019.08.17"]
[Round "1.12"]
[White "Antoniewicz, Jakub"]
[Black "Kucza, Karol"]
[Result "0-1"]
[ECO "D00"]
[WhiteElo "1837"]
[BlackElo "2296"]
[Annotator "ChessBase"]
[PlyCount "72"]
[EventDate "2019.08.17"]
[EventType "swiss"]
[EventCountry "POL"]
[SourceTitle "playchess.com"]
[Source "ChessBase"]
[SourceQuality "1"]
[TimeControl "40/5400+30:1800+30"]

1. d4 {[%emt 0:00:00]} d5 {[%emt 0:00:00]} 2. g3 {[%emt 0:00:00]} Nf6 {[%emt 0:00:09]} 3. Bg2 {[%emt 0:00:00]} c5 {[%emt 0:00:42]} 4. Nf3 {[%emt 0:00:30]} cxd4 {[%emt 0:00:55]} 5. O-O {[%emt 0:00:31]} g6 {[%emt 0:02:54]} 6. Nxd4 {[%emt 0:03:43]} Bg7 {[%emt 0:00:25]} 7. c4 {[%emt 0:03:14]} dxc4 {[%emt 0:03:06]} 8. Qa4+ Nbd7 {[%emt 0:06:37]} 9. Rd1 {[%emt 0:10:32]} O-O {[%emt 0:00:15]} 10. Qxc4 {[%emt 0:05:30]} Qb6 {[%emt 0:04:42]} 11. Nc3 {[%emt 0:10:53]} a6 {[%emt 0:07:15]} 12. h3 {[%emt 0:09:00]} Re8 {[%emt 0:20:54]} 13. Nb3 {[%emt 0:19:59]} Ne5 {[%emt 0:01:54]} 14. Qc5 {[%emt 0:02:45]} Qxc5 {[%emt 0:02:28]} 15. Nxc5 {[%emt 0:00:01]} Rb8 {[%emt 0:00:12]} 16. f4 {[%emt 0:07:10]} Nc4 {[%emt 0:03:01]} 17. e4 {[%emt 0:06:05]} b6 {[%emt 0:06:17]} 18. Nd3 {[%emt 0:05:58]} Nd7 {[%emt 0:01:51]} 19. e5 {[%emt 0:01:03]} Bb7 {[%emt 0:07:02]} 20. b3 {[%emt 0:05:41]} Na5 {[%emt 0:01:40]} 21. Be3 {[%emt 0:01:47]} f6 {[%emt 0:04:55]} 22. Nb4 {[%emt 0:03:07]} Nc5 {[%emt 0:01:13]} 23. Ncd5 {[%emt 0:02:58]} fxe5 {[%emt 0:00:27]} 24. Nxb6 {[%emt 0:00:36]} Bxg2 {[%emt 0:00:26]} 25. Bxc5 {[%emt 0:00:10]} Bxh3 {[%emt 0:00:34]} 26. Nxa6 {[%emt 0:00:54]} Rb7 {[%emt 0:02:42]} 27. Rac1 {[%emt 0:00:17]} exf4 {[%emt 0:00:48]} 28. gxf4 {[%emt 0:00:01]} e5 {[%emt 0:02:29]} 29. Bf2 {[%emt 0:01:00]} Re6 {[%emt 0:01:19]} 30. Rd8+ {[%emt 0:00:36]} Kf7 {[%emt 0:00:09]} 31. Rd5 {[%emt 0:00:48]} Nc6 {[%emt 0:02:55]} 32. Nd7 {[%emt 0:00:37]} Ne7 {[%emt 0:01:03]} 33. Nac5 {[%emt 0:00:24]} Nxd5 {[%emt 0:03:11]} 34. Nxb7 {[%emt 0:00:01]} Nxf4 {[%emt 0:00:12]} 35. Nd8+ {[%emt 0:00:51]} Ke7 {[%emt 0:00:19]} 36. Rc7 {[%emt 0:00:41]} Kxd8 0-1

[Event "55th Rubinstein Memorial-A 2019"]
[Site "Polanica-Zdroj"]
[Date "2019.08.17"]
[Round "1.14"]
[White "Bojczewski, Mateusz"]
[Black "Marszalek, Maciej"]
[Result "0-1"]
[ECO "B41"]
[WhiteElo "1836"]
[BlackElo "2295"]
[Annotator "ChessBase"]
[PlyCount "74"]
[EventDate "2019.08.17"]
[EventType "swiss"]
[EventCountry "POL"]
[SourceTitle "playchess.com"]
[Source "ChessBase"]
[SourceQuality "1"]
[TimeControl "40/5400+30:1800+30"]

1. e4 {[%emt 0:00:00]} c5 {[%emt 0:00:38]} 2. Nf3 {[%emt 0:00:00]} e6 {[%emt 0:00:03]} 3. d4 {[%emt 0:00:17]} cxd4 {[%emt 0:00:22]} 4. Nxd4 {[%emt 0:00:11]} a6 {[%emt 0:00:04]} 5. c4 {[%emt 0:00:23]} Qc7 {[%emt 0:00:52]} 6. Nc3 {[%emt 0:00:41]} Nf6 {[%emt 0:00:06]} 7. a3 {[%emt 0:00:29]} b6 {[%emt 0:00:39]} 8. Be3 {[%emt 0:06:59]} Bb7 {[%emt 0:02:33]} 9. f3 {[%emt 0:05:59]} Be7 {[%emt 0:00:20]} 10. Rc1 {[%emt 0:00:46]} O-O {[%emt 0:00:27]} 11. Be2 {[%emt 0:02:58]} d6 {[%emt 0:01:52]} 12. O-O {[%emt 0:03:13]} Nbd7 {[%emt 0:00:50]} 13. b4 {[%emt 0:01:57]} Rac8 {[%emt 0:00:12]} 14. Qb3 {[%emt 0:18:14]} Qb8 {[%emt 0:01:26]} 15. Rfd1 {[%emt 0:02:24]} Bd8 {[%emt 0:02:28]} 16. g3 {[%emt 0:13:52]} Bc7 {[%emt 0:01:57]} 17. Bf1 {[%emt 0:01:23]} Kh8 {[%emt 0:11:05]} 18. Bg2 {[%emt 0:00:48]} Rg8 {[%emt 0:00:31]} 19. Rc2 {[%emt 0:02:37]} g5 {[%emt 0:01:33]} 20. Bc1 {[%emt 0:01:35]} Rg6 {[%emt 0:01:18]} 21. Bb2 {[%emt 0:02:22]} Kg8 {[%emt 0:00:52]} 22. Nde2 {[%emt 0:09:04]} Qa8 {[%emt 0:07:54]} 23. Rcd2 {[%emt 0:04:27]} Ne5 {[%emt 0:03:13]} 24. Nb1 {[%emt 0:05:56]} b5 {[%emt 0:03:16]} 25. cxb5 {[%emt 0:03:27]} axb5 {[%emt 0:00:37]} 26. Bxe5 {[%emt 0:00:13]} dxe5 {[%emt 0:00:03]} 27. Nbc3 {[%emt 0:01:57]} Bc6 {[%emt 0:02:25]} 28. Ra2 {[%emt 0:03:29]} g4 {[%emt 0:01:35]} 29. a4 {[%emt 0:01:44]} Qa7+ {[%emt 0:07:07]} 30. Kh1 {[%emt 0:00:53]} gxf3 {[%emt 0:01:23]} 31. Bxf3 {[%emt 0:00:26]} Qe3 {[%emt 0:00:47]} 32. Rf1 {[%emt 0:02:16]} Nxe4 33. Kg2 Nd2 34. Rxd2 Bxf3+ 35. Rxf3 Qxd2 36. axb5 Bb6 37. Rf1 Rxc3 0-1

[Event "55th Rubinstein Memorial-A 2019"]
[Site "Polanica-Zdroj"]
[Date "2019.08.17"]
[Round "1.15"]
[White "Siekanski, Janusz"]
[Black "Raclawicki, Kacper"]
[Result "1/2-1/2"]
[ECO "E97"]
[WhiteElo "2263"]
[BlackElo "1835"]
[Annotator "ChessBase"]
[PlyCount "96"]
[EventDate "2019.08.17"]
[EventType "swiss"]
[EventCountry "POL"]
[SourceTitle "playchess.com"]
[Source "ChessBase"]
[SourceQuality "1"]
[TimeControl "40/5400+30:1800+30"]

1. d4 {[%emt 0:00:00]} Nf6 {[%emt 0:00:00]} 2. c4 {[%emt 0:00:00]} g6 {[%emt 0:00:00]} 3. Nc3 {[%emt 0:00:00]} Bg7 {[%emt 0:01:15]} 4. e4 {[%emt 0:00:09]} d6 {[%emt 0:00:07]} 5. Nf3 {[%emt 0:00:19]} O-O {[%emt 0:00:29]} 6. Be2 {[%emt 0:00:14]} e5 {[%emt 0:00:33]} 7. O-O {[%emt 0:00:28]} Nc6 {[%emt 0:00:45]} 8. d5 {[%emt 0:00:25]} Ne7 {[%emt 0:00:17]} 9. Nd2 {[%emt 0:00:15]} Nd7 {[%emt 0:03:00]} 10. b4 {[%emt 0:00:20]} f5 {[%emt 0:02:05]} 11. c5 {[%emt 0:00:40]} dxc5 {[%emt 0:08:02]} 12. bxc5 {[%emt 0:00:13]} Nxc5 {[%emt 0:00:34]} 13. Ba3 {[%emt 0:01:56]} Nxe4 {[%emt 0:03:10]} 14. Ndxe4 {[%emt 0:00:27]} fxe4 {[%emt 0:00:24]} 15. Bc4 {[%emt 0:04:57]} Kh8 {[%emt 0:03:55]} 16. Nxe4 {[%emt 0:03:55]} Rf4 {[%emt 0:18:00]} 17. d6 {[%emt 0:15:05]} Nf5 {[%emt 0:08:42]} 18. dxc7 {[%emt 0:12:35]} Qxc7 {[%emt 0:05:53]} 19. Qd5 {[%emt 0:07:55]} Be6 {[%emt 0:05:28]} 20. Qxe6 {[%emt 0:00:18]} Rxe4 {[%emt 0:03:29]} 21. Bd3 {[%emt 0:14:05]} Ra4 {[%emt 0:08:31]} 22. Rac1 {[%emt 0:05:23]} Qd8 {[%emt 0:09:43]} 23. Bxf5 {[%emt 0:05:11]} Rxa3 {[%emt 0:02:16]} 24. Be4 {[%emt 0:01:24]} Qe8 {[%emt 0:04:02]} 25. Qc4 {[%emt 0:10:53]} Ra4 {[%emt 0:01:36]} 26. Qc2 {[%emt 0:01:18]} Rb4 {[%emt 0:05:02]} 27. Rfd1 {[%emt 0:01:57]} Qe7 {[%emt 0:01:27]} 28. Rd5 {[%emt 0:02:39]} Rf8 {[%emt 0:02:08]} 29. g3 {[%emt 0:01:09]} b6 {[%emt 0:02:18]} 30. h4 {[%emt 0:00:30]} Rd4 {[%emt 0:00:46]} 31. Rxd4 {[%emt 0:01:56]} exd4 {[%emt 0:00:01]} 32. Qd3 {[%emt 0:00:26]} Qf7 {[%emt 0:00:33]} 33. Rc2 {[%emt 0:00:14]} Re8 {[%emt 0:00:43]} 34. Kg2 {[%emt 0:01:19]} Be5 {[%emt 0:00:48]} 35. Rc6 {[%emt 0:00:59]} Rf8 {[%emt 0:00:50]} 36. f4 {[%emt 0:01:38]} Bg7 {[%emt 0:00:19]} 37. a4 {[%emt 0:02:40]} Qa2+ {[%emt 0:00:38]} 38. Qc2 {[%emt 0:00:57]} Qxc2+ {[%emt 0:00:33]} 39. Rxc2 {[%emt 0:01:16]} Rd8 {[%emt 0:00:30]} 40. Kf2 {[%emt 0:00:00]} Bf8 41. Ke2 {[%emt 0:03:21]} Bc5 {[%emt 0:03:19]} 42. Kd3 {[%emt 0:01:25]} Re8 {[%emt 0:01:49]} 43. Rh2 {[%emt 0:03:03]} Kg7 {[%emt 0:01:26]} 44. h5 {[%emt 0:00:20]} a6 {[%emt 0:06:17]} 45. hxg6 {[%emt 0:03:48]} hxg6 {[%emt 0:00:04]} 46. Rh4 {[%emt 0:00:58]} Re6 {[%emt 0:03:21]} 47. Rg4 {[%emt 0:01:12]} Kh6 {[%emt 0:03:48]} 48. Rh4+ {[%emt 0:00:10]} Kg7 {[%emt 0:00:06]} 1/2-1/2

[Event "55th Rubinstein Memorial-A 2019"]
[Site "Polanica-Zdroj"]
[Date "2019.08.17"]
[Round "1.16"]
[White "Kwasny, Leszek"]
[Black "Lapaj, Mateusz"]
[Result "0-1"]
[ECO "E97"]
[WhiteElo "1832"]
[BlackElo "2233"]
[Annotator "ChessBase"]
[PlyCount "50"]
[EventDate "2019.08.17"]
[EventType "swiss"]
[EventCountry "POL"]
[SourceTitle "playchess.com"]
[Source "ChessBase"]
[SourceQuality "1"]
[TimeControl "40/5400+30:1800+30"]

1. Nf3 {[%emt 0:00:00]} Nf6 {[%emt 0:00:10]} 2. c4 {[%emt 0:00:00]} g6 {[%emt 0:00:04]} 3. d4 {[%emt 0:00:21]} Bg7 {[%emt 0:00:07]} 4. Nc3 {[%emt 0:00:08]} O-O {[%emt 0:00:18]} 5. e4 {[%emt 0:01:14]} d6 {[%emt 0:00:02]} 6. Be2 {[%emt 0:00:31]} e5 {[%emt 0:00:08]} 7. O-O {[%emt 0:05:09]} Nc6 {[%emt 0:00:06]} 8. h3 {[%emt 0:10:05]} exd4 {[%emt 0:01:49]} 9. Nxd4 {[%emt 0:00:31]} Nxe4 {[%emt 0:04:45]} 10. Nxc6 {[%emt 0:11:49]} Nxc3 {[%emt 0:00:11]} 11. bxc3 {[%emt 0:08:47]} bxc6 {[%emt 0:00:07]} 12. Bf3 {[%emt 0:02:06]} Bd7 {[%emt 0:01:22]} 13. Qa4 {[%emt 0:08:21]} Bxc3 {[%emt 0:04:38]} 14. Rb1 {[%emt 0:00:08]} Bd4 {[%emt 0:41:47]} 15. Rd1 {[%emt 0:20:08]} Qh4 {[%emt 0:06:59]} 16. Rf1 {[%emt 0:20:36]} Bf5 {[%emt 0:03:45]} 17. Rb2 {[%emt 0:02:24]} Bd3 {[%emt 0:06:37]} 18. Rd2 {[%emt 0:04:39]} Bxf1 {[%emt 0:01:00]} 19. Kxf1 {[%emt 0:00:04]} Rab8 {[%emt 0:00:52]} 20. Qc2 {[%emt 0:01:37]} Rb6 {[%emt 0:02:14]} 21. Re2 {[%emt 0:00:46]} Rfb8 {[%emt 0:01:35]} 22. Re4 {[%emt 0:00:33]} Qf6 {[%emt 0:00:02]} 23. Bh6 {[%emt 0:00:27]} Rb1+ {[%emt 0:04:19]} 24. Re1 {[%emt 0:00:16]} R1b2 {[%emt 0:00:32]} 25. Qxb2 {[%emt 0:00:24]} Bxb2 {[%emt 0:00:03]} 0-1

[Event "55th Rubinstein Memorial-A 2019"]
[Site "Polanica-Zdroj"]
[Date "2019.08.17"]
[Round "1.17"]
[White "Jaroch, Karol"]
[Black "Jedynak, January"]
[Result "1/2-1/2"]
[ECO "A11"]
[WhiteElo "2231"]
[BlackElo "1822"]
[Annotator "ChessBase"]
[PlyCount "112"]
[EventDate "2019.08.17"]
[EventType "swiss"]
[EventCountry "POL"]
[SourceTitle "playchess.com"]
[Source "ChessBase"]
[SourceQuality "1"]
[TimeControl "40/5400+30:1800+30"]

1. c4 {[%emt 0:00:00]} c6 {[%emt 0:00:21]} 2. Nf3 {[%emt 0:00:08]} d5 {[%emt 0:00:25]} 3. e3 {[%emt 0:00:09]} Nf6 {[%emt 0:00:20]} 4. b3 {[%emt 0:00:05]} Bg4 {[%emt 0:00:26]} 5. Bb2 {[%emt 0:00:24]} e6 {[%emt 0:01:20]} 6. Be2 {[%emt 0:00:08]} Bd6 {[%emt 0:01:03]} 7. h3 {[%emt 0:03:43]} Bh5 {[%emt 0:01:20]} 8. d3 {[%emt 0:00:10]} Nbd7 {[%emt 0:02:25]} 9. Nbd2 {[%emt 0:05:54]} Qe7 {[%emt 0:01:35]} 10. Qc2 {[%emt 0:07:39]} O-O {[%emt 0:04:28]} 11. g4 {[%emt 0:03:46]} Bg6 {[%emt 0:01:10]} 12. h4 {[%emt 0:11:30]} h5 {[%emt 0:06:19]} 13. gxh5 {[%emt 0:02:30]} Bxh5 {[%emt 0:02:11]} 14. Rg1 {[%emt 0:04:11]} e5 {[%emt 0:02:50]} 15. Rg5 {[%emt 0:01:29]} Bg6 {[%emt 0:03:50]} 16. O-O-O {[%emt 0:03:58]} a5 {[%emt 0:02:53]} 17. Rh1 {[%emt 0:04:03]} a4 {[%emt 0:08:18]} 18. h5 {[%emt 0:00:49]} axb3 {[%emt 0:01:24]} 19. axb3 {[%emt 0:00:21]} Bh7 {[%emt 0:00:15]} 20. Rhg1 {[%emt 0:00:59]} Ne8 {[%emt 0:03:35]} 21. Kb1 {[%emt 0:22:47]} b5 {[%emt 0:04:15]} 22. c5 {[%emt 0:05:55]} Bxc5 {[%emt 0:08:31]} 23. Nxe5 {[%emt 0:00:43]} f6 {[%emt 0:17:29]} 24. Nxd7 {[%emt 0:04:14]} Qxd7 {[%emt 0:01:09]} 25. Rxg7+ {[%emt 0:00:07]} Nxg7 {[%emt 0:02:00]} 26. h6 {[%emt 0:08:46]} Be7 {[%emt 0:00:25]} 27. Rxg7+ {[%emt 0:00:05]} Kh8 {[%emt 0:00:10]} 28. Nf3 {[%emt 0:00:09]} Rg8 {[%emt 0:05:07]} 29. Rxe7 {[%emt 0:08:17]} Qxe7 {[%emt 0:00:23]} 30. Qxc6 {[%emt 0:00:02]} Rgf8 {[%emt 0:06:03]} 31. Nd4 {[%emt 0:00:28]} Qb4 {[%emt 0:05:06]} 32. Bc3 {[%emt 0:01:25]} Qa3 {[%emt 0:00:45]} 33. Qxd5 {[%emt 0:00:30]} b4 {[%emt 0:02:30]} 34. Bb2 {[%emt 0:00:35]} Qa2+ {[%emt 0:01:54]} 35. Kc1 {[%emt 0:00:01]} Rac8+ {[%emt 0:01:33]} 36. Nc6 {[%emt 0:00:56]} Qa6 {[%emt 0:00:57]} 37. Bf3 {[%emt 0:00:54]} Rxc6+ {[%emt 0:01:49]} 38. Qxc6 {[%emt 0:00:31]} Qxc6+ {[%emt 0:01:00]} 39. Bxc6 {[%emt 0:00:02]} Rc8 {[%emt 0:00:07]} 40. Bxf6+ {[%emt 0:00:00]} Kg8 {[%emt 0:00:00]} 41. Be7 {[%emt 0:00:10]} Rxc6+ {[%emt 0:00:21]} 42. Kd2 {[%emt 0:00:02]} Rc3 {[%emt 0:05:08]} 43. e4 {[%emt 0:01:48]} Rxb3 {[%emt 0:02:02]} 44. Kc2 {[%emt 0:00:01]} Ra3 {[%emt 0:01:19]} 45. Bxb4 {[%emt 0:01:43]} Ra2+ {[%emt 0:00:08]} 46. Kb3 {[%emt 0:00:07]} Rxf2 {[%emt 0:00:08]} 47. Bc3 {[%emt 0:00:04]} Kf7 {[%emt 0:01:47]} 48. Bg7 {[%emt 0:00:11]} Ke6 {[%emt 0:01:01]} 49. Kc3 {[%emt 0:00:14]} Rh2 {[%emt 0:01:00]} 50. Kd4 {[%emt 0:00:48]} Rh3 {[%emt 0:01:01]} 51. Kc4 {[%emt 0:00:04]} Kd6 {[%emt 0:04:46]} 52. Kd4 {[%emt 0:00:46]} Bg8 {[%emt 0:06:04]} 53. Bf8+ {[%emt 0:00:19]} Ke6 {[%emt 0:00:09]} 54. Bg7 {[%emt 0:00:06]} Bh7 {[%emt 0:00:26]} 55. Kc4 {[%emt 0:00:09]} Kd6 {[%emt 0:00:47]} 56. Kd4 {[%emt 0:00:05]} Ke6 {[%emt 0:02:33]} 1/2-1/2

[Event "55th Rubinstein Memorial-A 2019"]
[Site "Polanica-Zdroj"]
[Date "2019.08.17"]
[Round "1.18"]
[White "Twardowski, Hubert"]
[Black "Jaskolka, Tomasz"]
[Result "0-1"]
[ECO "C06"]
[WhiteElo "1822"]
[BlackElo "2227"]
[Annotator "ChessBase"]
[PlyCount "84"]
[EventDate "2019.08.17"]
[EventType "swiss"]
[EventCountry "POL"]
[SourceTitle "playchess.com"]
[Source "ChessBase"]
[SourceQuality "1"]
[TimeControl "40/5400+30:1800+30"]

1. e4 {[%emt 0:00:00]} e6 {[%emt 0:00:00]} 2. d4 {[%emt 0:00:20]} d5 {[%emt 0:00:00]} 3. Nd2 {[%emt 0:00:04]} Nf6 {[%emt 0:00:00]} 4. e5 {[%emt 0:00:26]} Nfd7 {[%emt 0:00:01]} 5. Bd3 {[%emt 0:01:31]} c5 {[%emt 0:00:04]} 6. c3 {[%emt 0:00:07]} Nc6 {[%emt 0:00:06]} 7. Ne2 {[%emt 0:00:11]} cxd4 {[%emt 0:00:04]} 8. cxd4 {[%emt 0:00:06]} f6 {[%emt 0:00:05]} 9. exf6 {[%emt 0:01:02]} Nxf6 {[%emt 0:00:15]} 10. Nf3 {[%emt 0:01:31]} Bd6 {[%emt 0:00:05]} 11. O-O {[%emt 0:00:22]} Qc7 {[%emt 0:00:02]} 12. Nc3 {[%emt 0:01:09]} a6 {[%emt 0:00:08]} 13. h3 {[%emt 0:00:04]} O-O {[%emt 0:01:04]} 14. Be3 {[%emt 0:01:28]} h6 {[%emt 0:17:36]} 15. Rc1 {[%emt 0:02:19]} Nh5 {[%emt 0:22:34]} 16. Nh4 {[%emt 0:26:14]} Nf4 {[%emt 0:02:31]} 17. Bb1 {[%emt 0:00:16]} Qf7 {[%emt 0:14:28]} 18. g3 {[%emt 0:19:01]} e5 {[%emt 0:19:04]} 19. Bxf4 {[%emt 0:04:40]} exf4 {[%emt 0:02:18]} 20. g4 {[%emt 0:18:26]} g5 {[%emt 0:13:26]} 21. Nf5 {[%emt 0:12:45]} Bxf5 {[%emt 0:00:05]} 22. Bxf5 {[%emt 0:00:06]} Rae8 {[%emt 0:03:24]} 23. Qd3 {[%emt 0:00:43]} Ne7 {[%emt 0:01:19]} 24. Rce1 {[%emt 0:07:47]} Nxf5 {[%emt 0:00:05]} 25. Qxf5 {[%emt 0:01:00]} Qxf5 {[%emt 0:00:12]} 26. gxf5 {[%emt 0:00:04]} Rxe1 {[%emt 0:02:56]} 27. Rxe1 {[%emt 0:00:01]} Rxf5 {[%emt 0:00:10]} 28. Re6 {[%emt 0:00:20]} Bf8 {[%emt 0:01:02]} 29. Rb6 {[%emt 0:00:36]} Rf7 {[%emt 0:00:38]} 30. f3 {[%emt 0:01:40]} Bg7 {[%emt 0:00:29]} 31. Rb4 {[%emt 0:00:34]} Rc7 {[%emt 0:00:40]} 32. Kf1 {[%emt 0:00:30]} Rc4 {[%emt 0:00:33]} 33. Rxb7 {[%emt 0:00:34]} Rxd4 {[%emt 0:00:26]} 34. Rb6 {[%emt 0:00:30]} Rd3 {[%emt 0:00:34]} 35. Rxa6 {[%emt 0:00:29]} Rxf3+ {[%emt 0:00:28]} 36. Kg2 {[%emt 0:00:31]} Rg3+ {[%emt 0:00:04]} 37. Kh2 {[%emt 0:00:20]} d4 {[%emt 0:00:52]} 38. Ne4 {[%emt 0:00:40]} Re3 {[%emt 0:00:11]} 39. Nf6+ {[%emt 0:00:23]} Kf7 {[%emt 0:00:51]} 40. Nh5 {[%emt 0:00:00]} Be5 {[%emt 0:00:00]} 41. b4 {[%emt 0:08:05]} d3 {[%emt 0:01:00]} 42. Ra8 {[%emt 0:00:10]} d2 {[%emt 0:00:34]} 0-1

[Event "55th Rubinstein Memorial-A 2019"]
[Site "Polanica-Zdroj"]
[Date "2019.08.17"]
[Round "1.19"]
[White "Lukasiewicz, Krzysztof"]
[Black "Jeda, Maciej"]
[Result "1-0"]
[ECO "B70"]
[WhiteElo "2185"]
[BlackElo "1815"]
[Annotator "ChessBase"]
[PlyCount "77"]
[EventDate "2019.08.17"]
[EventType "swiss"]
[EventCountry "POL"]
[SourceTitle "playchess.com"]
[Source "ChessBase"]
[SourceQuality "1"]
[TimeControl "40/5400+30:1800+30"]

1. e4 {[%emt 0:09:50]} c5 {[%emt 0:00:00]} 2. Nf3 {[%emt 0:00:05]} d6 {[%emt 0:00:00]} 3. d4 {[%emt 0:00:03]} cxd4 {[%emt 0:00:06]} 4. Nxd4 {[%emt 0:00:05]} Nf6 {[%emt 0:00:12]} 5. Nc3 {[%emt 0:00:02]} g6 {[%emt 0:00:15]} 6. Bc4 {[%emt 0:00:26]} Bg7 {[%emt 0:00:26]} 7. O-O {[%emt 0:00:06]} O-O {[%emt 0:00:13]} 8. Bb3 {[%emt 0:01:24]} Nc6 {[%emt 0:00:57]} 9. Re1 {[%emt 0:01:08]} Bd7 {[%emt 0:07:19]} 10. Nf3 {[%emt 0:01:42]} Rc8 {[%emt 0:03:42]} 11. h3 {[%emt 0:01:52]} Qa5 {[%emt 0:02:58]} 12. Bf4 {[%emt 0:12:18]} Rfd8 {[%emt 0:05:13]} 13. Nd5 {[%emt 0:06:37]} Nxd5 {[%emt 0:02:04]} 14. exd5 {[%emt 0:00:05]} Nb8 {[%emt 0:03:49]} 15. c3 {[%emt 0:00:56]} Re8 {[%emt 0:04:45]} 16. Bg5 {[%emt 0:04:26]} Kf8 {[%emt 0:03:23]} 17. Qe2 {[%emt 0:07:16]} e5 {[%emt 0:02:29]} 18. dxe6 {[%emt 0:02:15]} Bxe6 {[%emt 0:00:14]} 19. Qd2 {[%emt 0:01:51]} Bxb3 {[%emt 0:04:24]} 20. Qxd6+ {[%emt 0:07:04]} Kg8 {[%emt 0:00:37]} 21. axb3 {[%emt 0:00:09]} Qf5 {[%emt 0:02:14]} 22. Qb4 {[%emt 0:20:07]} b6 {[%emt 0:02:22]} 23. Rxe8+ {[%emt 0:04:27]} Rxe8 {[%emt 0:00:17]} 24. Qa4 {[%emt 0:00:04]} b5 {[%emt 0:06:07]} 25. Qxa7 {[%emt 0:02:59]} Nc6 {[%emt 0:00:34]} 26. Qb7 {[%emt 0:00:16]} Ne5 {[%emt 0:01:15]} 27. Ra8 {[%emt 0:03:57]} Nxf3+ {[%emt 0:01:14]} 28. Qxf3 {[%emt 0:00:06]} Qb1+ {[%emt 0:07:09]} 29. Kh2 {[%emt 0:00:11]} Be5+ {[%emt 0:00:53]} 30. g3 {[%emt 0:00:04]} Bxg3+ {[%emt 0:01:16]} 31. Kg2 {[%emt 0:01:30]} Rb8 {[%emt 0:03:42]} 32. Kxg3 {[%emt 0:02:10]} Qg1+ {[%emt 0:00:32]} 33. Kh4 {[%emt 0:00:04]} Rxa8 34. Qxa8+ {[%emt 0:00:07]} Kg7 {[%emt 0:01:53]} 35. Bh6+ {[%emt 0:00:17]} Kf6 {[%emt 0:01:00]} 36. Qc6+ {[%emt 0:00:36]} Ke5 {[%emt 0:04:16]} 37. Bg7+ {[%emt 0:00:17]} Kf4 {[%emt 0:02:35]} 38. Qf6+ {[%emt 0:01:45]} Ke4 {[%emt 0:00:48]} 39. Qd4+ {[%emt 0:01:05]} 1-0

[Event "55th Rubinstein Memorial-A 2019"]
[Site "Polanica-Zdroj"]
[Date "2019.08.17"]
[Round "1.20"]
[White "Gromczak, Dariusz"]
[Black "Niedbala, Bartlomiej"]
[Result "0-1"]
[ECO "B06"]
[WhiteElo "1812"]
[BlackElo "2169"]
[Annotator "ChessBase"]
[PlyCount "68"]
[EventDate "2019.08.17"]
[EventType "swiss"]
[EventCountry "POL"]
[SourceTitle "playchess.com"]
[Source "ChessBase"]
[SourceQuality "1"]
[TimeControl "40/5400+30:1800+30"]

1. e4 {[%emt 0:00:00]} g6 {[%emt 0:01:10]} 2. d4 {[%emt 0:00:29]} Bg7 {[%emt 0:00:03]} 3. Nc3 {[%emt 0:00:40]} d6 {[%emt 0:01:11]} 4. Be3 {[%emt 0:01:04]} a6 {[%emt 0:00:03]} 5. Bc4 {[%emt 0:00:55]} b5 {[%emt 0:04:29]} 6. Bb3 {[%emt 0:00:50]} Bb7 {[%emt 0:01:12]} 7. Nf3 {[%emt 0:04:04]} e6 {[%emt 0:03:54]} 8. Qd2 {[%emt 0:05:36]} b4 {[%emt 0:01:20]} 9. Ne2 {[%emt 0:01:03]} Bxe4 {[%emt 0:00:19]} 10. Qxb4 {[%emt 0:01:26]} Ne7 {[%emt 0:03:48]} 11. Ng5 {[%emt 0:08:16]} Bxg2 {[%emt 0:12:35]} 12. Rg1 {[%emt 0:13:55]} a5 {[%emt 0:03:14]} 13. Qd2 {[%emt 0:07:57]} Bd5 {[%emt 0:02:10]} 14. Nf4 {[%emt 0:03:58]} a4 {[%emt 0:02:01]} 15. c4 {[%emt 0:09:59]} axb3 {[%emt 0:00:51]} 16. cxd5 {[%emt 0:00:31]} Nxd5 {[%emt 0:00:02]} 17. Nxd5 {[%emt 0:05:44]} exd5 {[%emt 0:01:15]} 18. a3 {[%emt 0:00:47]} Nc6 {[%emt 0:00:53]} 19. Qd3 {[%emt 0:10:26]} Na5 {[%emt 0:01:20]} 20. Bd2 {[%emt 0:06:16]} Nc4 {[%emt 0:00:24]} 21. Qxb3 {[%emt 0:03:01]} O-O {[%emt 0:01:13]} 22. O-O-O {[%emt 0:04:11]} h6 {[%emt 0:02:30]} 23. Nf3 {[%emt 0:02:12]} Rb8 {[%emt 0:00:19]} 24. Bb4 {[%emt 0:00:29]} c5 {[%emt 0:01:01]} 25. dxc5 {[%emt 0:01:07]} dxc5 {[%emt 0:03:36]} 26. Qxc4 {[%emt 0:00:28]} dxc4 {[%emt 0:00:20]} 27. Rxd8 {[%emt 0:00:46]} Rfxd8 {[%emt 0:00:07]} 28. Bxc5 {[%emt 0:02:41]} Bxb2+ {[%emt 0:01:18]} 29. Kc2 {[%emt 0:00:25]} Bxa3 {[%emt 0:01:41]} 30. Bxa3 {[%emt 0:01:42]} Rd3 {[%emt 0:00:01]} 31. Bc5 {[%emt 0:00:40]} Rxf3 {[%emt 0:00:11]} 32. Be3 {[%emt 0:00:53]} Re8 {[%emt 0:00:27]} 33. Kd2 {[%emt 0:01:57]} Rh3 {[%emt 0:01:25]} 34. Rc1 {[%emt 0:00:59]} Re4 {[%emt 0:00:21]} 0-1

[Event "55th Rubinstein Memorial-A 2019"]
[Site "Polanica-Zdroj"]
[Date "2019.08.17"]
[Round "1.22"]
[White "Borowski, Przemyslaw"]
[Black "Vanduyfhuys, Daria"]
[Result "0-1"]
[ECO "D31"]
[WhiteElo "1805"]
[BlackElo "2160"]
[Annotator "ChessBase"]
[PlyCount "58"]
[EventDate "2019.08.17"]
[EventType "swiss"]
[EventCountry "POL"]
[SourceTitle "playchess.com"]
[Source "ChessBase"]
[SourceQuality "1"]
[TimeControl "40/5400+30:1800+30"]

1. c4 {[%emt 0:00:17]} e6 {[%emt 0:00:00]} 2. d4 {[%emt 0:00:44]} d5 {[%emt 0:00:00]} 3. Nc3 {[%emt 0:00:13]} Be7 {[%emt 0:00:00]} 4. Bf4 {[%emt 0:00:32]} Nf6 {[%emt 0:00:22]} 5. e3 {[%emt 0:00:33]} O-O {[%emt 0:00:30]} 6. c5 {[%emt 0:01:17]} b6 {[%emt 0:06:45]} 7. b4 {[%emt 0:00:20]} a5 {[%emt 0:00:43]} 8. a3 {[%emt 0:00:46]} Bd7 {[%emt 0:06:39]} 9. Nf3 {[%emt 0:08:25]} Ne4 {[%emt 0:22:26]} 10. Nxe4 {[%emt 0:04:52]} dxe4 {[%emt 0:00:05]} 11. Nd2 {[%emt 0:01:12]} axb4 {[%emt 0:01:26]} 12. axb4 {[%emt 0:02:03]} Rxa1 {[%emt 0:00:09]} 13. Qxa1 {[%emt 0:00:31]} Nc6 {[%emt 0:00:18]} 14. Qc3 {[%emt 0:05:57]} e5 {[%emt 0:16:44]} 15. dxe5 {[%emt 0:05:28]} bxc5 {[%emt 0:00:45]} 16. bxc5 {[%emt 0:02:32]} Be6 {[%emt 0:14:08]} 17. Nxe4 {[%emt 0:11:02]} Qd5 {[%emt 0:03:55]} 18. Bd3 {[%emt 0:08:54]} Rd8 {[%emt 0:04:52]} 19. Ke2 {[%emt 0:10:41]} Bf5 {[%emt 0:07:41]} 20. f3 {[%emt 0:06:38]} Qa2+ {[%emt 0:01:00]} 21. Qc2 {[%emt 0:01:05]} Qa3 {[%emt 0:00:42]} 22. Nf6+ {[%emt 0:15:18]} Bxf6 {[%emt 0:05:49]} 23. Bxf5 {[%emt 0:00:21]} Nb4 {[%emt 0:01:55]} 24. Qb1 {[%emt 0:04:52]} Nd5 {[%emt 0:01:52]} 25. Qc2 {[%emt 0:03:28]} Bxe5 {[%emt 0:00:30]} 26. Rd1 {[%emt 0:02:09]} Bxf4 {[%emt 0:01:06]} 27. exf4 {[%emt 0:01:45]} g6 {[%emt 0:00:46]} 28. Bd3 {[%emt 0:01:29]} Nc3+ {[%emt 0:00:30]} 29. Kd2 {[%emt 0:00:23]} Nxd1 {[%emt 0:00:04]} 0-1